bitfinex-derivatives/quotes_ETHF0:USTF0_20250708
["timestamp","ask_amount","ask_price","bid_price","bid_amount"]
[1751989632279,0.77882,2567.8,2567.4,8.69926627]
[1751989632585,0.77878,2567.9,2567.8,0.77876]
[1751989632783,3.2078,2568.0,2567.9,2.48066]
[1751989633282,3.98653,2568.0,2567.9,2.48066]
[1751989634477,3.98653,2568.0,2567.9,5.20185861]
[1751989634781,3.2078,2568.0,2567.9,5.20185861]
[1751989634981,3.2078,2568.0,2567.9,7.53064231]
[1751989635776,0.684,2568.3,2568.1,0.77867]
[1751989635777,0.77871,2568.2,2568.1,0.77867]
[1751989635982,0.77867,2568.3,2568.2,0.77865]
[1751989636381,0.77867,2568.3,2568.2,1.41925]
[1751989637374,0.77867,2568.3,2568.2,0.6406]
[1751989637574,0.77867,2568.3,2568.2,1.41927]
[1751989638380,0.77867,2568.3,2568.2,0.6406]
[1751989638685,0.77862,2568.4,2568.3,0.77861]
[1751989639079,0.77862,2568.4,2568.3,3.49980861]
[1751989639474,0.77862,2568.4,2568.3,5.20170861]
[1751989642185,0.77862,2568.4,2568.3,2.48051]
[1751989644179,0.77862,2568.4,2568.3,1.7019]
[1751989644687,0.77862,2568.4,2568.3,0.6547]
[1751989644887,2.73572,2568.4,2568.3,0.6547]
[1751989645092,0.77873,2568.0,2567.9,0.9888]
[1751989645393,0.77873,2568.0,2567.9,0.6765]
[1751989645779,2.73583,2568.0,2567.9,0.6765]
[1751989645984,2.73583,2568.0,2567.7,4.68702]
[1751989645985,0.77879,2567.8,2567.7,4.68702]
[1751989646187,0.77879,2567.8,2567.7,6.35232]
[1751989646391,0.77879,2567.8,2567.7,5.5735]
[1751989646595,0.77879,2567.8,2567.7,4.5847]
[1751989646792,0.77879,2567.8,2567.7,3.9082]
[1751989646990,0.77879,2567.8,2567.7,1.3769]
[1751989647893,0.77879,2567.8,2567.7,2.3657]
[1751989648296,0.77882,2567.7,2567.6,2.3287837]
[1751989648489,0.77882,2567.7,2567.4,3.3175837]
[1751989648490,1.3847,2567.7,2567.4,3.3175837]
[1751989648695,0.77888,2567.5,2567.4,3.0052837]
[1751989648896,0.77888,2567.5,2567.4,0.6765]
[1751989649097,2.16358,2567.5,2567.4,0.6765]
[1751989649803,2.16358,2567.5,2567.4,1.6653]
[1751989650303,2.16358,2567.5,2567.4,0.6765]
[1751989651791,2.16358,2567.5,2567.4,1.6653]
[1751989652790,0.77888,2567.5,2567.4,1.6653]
[1751989655908,0.77891,2567.4,2567.3,3.1077237]
[1751989656103,0.77891,2567.4,2567.3,3.7842237]
[1751989656303,0.77891,2567.4,2567.3,3.1077237]
[1751989656503,0.7789,2567.5,2567.4,0.77889]
[1751989656804,0.77891,2567.4,2567.3,3.1077037]
[1751989657004,0.77891,2567.4,2567.3,3.7842037]
[1751989657407,0.77891,2567.4,2567.3,4.7730037]
[1751989659803,0.7789,2567.5,2567.4,0.77891]
[1751989660007,0.7789,2567.5,2567.4,2.44421]
[1751989661108,0.77891,2567.4,2567.3,2.3287837]
[1751989661311,2.17331,2567.4,2567.3,3.0052837]
[1751989661503,0.77891,2567.4,2567.3,4.7730237]
[1751989661703,0.77891,2567.4,2567.3,5.4117237]
[1751989661908,0.6946,2567.6,2567.3,4.6327837]
[1751989662104,0.7789,2567.5,2567.4,1.76768]
[1751989662304,0.7789,2567.5,2567.4,2.44418]
[1751989664110,0.7789,2567.5,2567.4,1.6653]
[1751989664409,0.7789,2567.5,2567.4,2.44421]
[1751989665810,0.7789,2567.5,2567.4,0.77891]
[1751989666015,0.7789,2567.5,2567.4,2.44421]
[1751989666711,0.7789,2567.5,2567.4,1.6653]
[1751989668205,0.7789,2567.5,2567.4,2.44421]
[1751989669409,6.55767,2567.7,2567.4,2.44421]
[1751989669410,5.15488,2567.7,2567.4,1.6653]
[1751989669609,0.77888,2567.5,2567.4,1.45539]
[1751989670206,0.77888,2567.5,2567.4,0.6765]
[1751989670406,0.77888,2567.5,2567.4,1.6653]
[1751989670807,0.77888,2567.5,2567.4,2.44421]
[1751989671112,0.77888,2567.5,2567.4,1.6653]
[1751989671507,3.50007861,2567.5,2567.4,0.6765]
[1751989671708,4.89717861,2567.5,2567.4,0.6765]
[1751989672411,0.77888,2567.5,2567.4,4.7548937]
[1751989674514,0.77888,2567.5,2567.4,2.42611]
[1751989675414,0.77888,2567.5,2567.4,5.92999562]
[1751989675811,0.77888,2567.5,2567.4,4.28279562]
[1751989676116,0.77888,2567.5,2567.4,5.91949562]
[1751989677916,0.77888,2567.5,2567.4,5.14058562]
[1751989678220,0.77888,2567.5,2567.4,5.91949562]
[1751989678512,0.77888,2567.5,2567.4,2.41561]
[1751989679920,0.77888,2567.5,2567.4,1.6367]
[1751989682318,0.77888,2567.5,2567.4,3.50137601]
[1751989682319,2.72119861,2567.5,2567.4,3.50137601]
[1751989682519,6.01864861,2567.5,2567.2,3.50137601]
[1751989682817,3.50013861,2567.3,2567.2,3.50137601]
[1751989683326,4.85033861,2567.3,2567.2,3.50137601]
[1751989685321,4.85033861,2567.3,2567.2,4.16737601]
[1751989685522,0.77894,2567.3,2567.2,4.94634601]
[1751989685722,0.77894,2567.3,2567.2,4.16737601]
[1751989685920,0.77894,2567.3,2567.2,5.13807601]
[1751989686122,0.77894,2567.3,2567.2,1.6367]
[1751989686318,0.77894,2567.3,2567.2,5.1365901]
[1751989686518,0.77894,2567.3,2567.2,4.2788601]
[1751989686719,0.77894,2567.3,2567.2,5.9155601]
[1751989687527,0.77894,2567.3,2567.2,2.41567]
[1751989688230,0.77894,2567.3,2567.2,1.6367]
[1751989688630,3.50013861,2567.3,2567.2,0.666]
[1751989688836,5.42033861,2567.3,2567.2,4.16579503]
[1751989689031,5.42033861,2567.3,2567.2,3.49979503]
[1751989689531,5.42033861,2567.3,2567.2,4.16579503]
[1751989689836,5.42033861,2567.3,2567.2,3.49979503]
[1751989690037,0.77897,2567.2,2567.1,3.49979503]
[1751989690240,0.779,2567.1,2567.0,3.49979503]
[1751989690430,3.50019861,2567.1,2567.0,3.49979503]
[1751989690636,0.77903,2567.0,2566.9,2.59036529]
[1751989690835,7.90067861,2567.0,2566.4,4.65675402]
[1751989691034,7.90067861,2567.0,2566.4,0.666]
[1751989691035,3.50037861,2566.5,2566.4,0.666]
[1751989691233,0.77918,2566.5,2566.4,0.666]
[1751989692240,3.50037861,2566.5,2566.4,0.666]
[1751989694243,0.77924,2566.3,2566.2,0.6728]
[1751989694444,0.77924,2566.3,2566.2,1.45207]
[1751989694637,0.77924,2566.4,2566.3,0.77923]
[1751989695339,0.77924,2566.4,2566.2,1.3388]
[1751989695340,0.77924,2566.3,2566.2,2.11805]
[1751989695940,0.77923,2566.4,2566.3,0.77922]
[1751989696137,0.77913,2566.8,2566.4,1.94804]
[1751989696342,0.77913,2566.8,2566.7,2.72119861]
[1751989696537,3.2078,2567.1,2566.7,3.38719861]
[1751989696741,3.2078,2567.1,2567.0,0.77903]
[1751989697136,0.77902,2567.1,2567.0,0.77903]
[1751989697440,0.779,2567.2,2567.1,0.77898]
[1751989697642,0.77903,2567.1,2567.0,0.77902]
[1751989698446,0.77903,2567.0,2566.9,2.13925]
[1751989698747,0.77903,2567.0,2566.9,0.77905]
[1751989700237,0.77903,2567.0,2566.9,2.41575]
[1751989700443,5.93629861,2567.3,2567.0,0.77901]
[1751989700444,0.77902,2567.1,2567.0,0.77901]
[1751989701040,0.77895,2567.3,2567.2,0.77894]
[1751989701944,0.77895,2567.3,2567.2,2.44964]
[1751989702744,3.98673,2567.4,2567.3,0.77894]
[1751989702947,3.98673,2567.4,2567.3,2.43434]
[1751989703147,0.77893,2567.4,2567.3,2.43434]
[1751989704546,0.77893,2567.4,2567.3,3.82474]
[1751989705252,0.77888,2567.6,2567.5,0.77886]
[1751989705546,0.77888,2567.6,2567.5,0.7]
[1751989705944,0.77888,2567.5,2567.4,0.7789]
[1751989706142,0.77888,2567.5,2567.4,2.4343]
[1751989707746,0.77887,2567.6,2567.5,0.77885]
[1751989707947,0.77887,2567.6,2567.5,1.47885]
[1751989708846,0.77887,2567.6,2567.5,0.7]
[1751989709037,2.72119861,2567.6,2567.2,1.6573]
[1751989709237,0.77894,2567.3,2567.2,1.6573]
[1751989709442,0.77894,2567.3,2567.2,2.3573]
[1751989709748,3.50013861,2567.3,2567.2,2.3573]
[1751989710239,3.50013861,2567.3,2567.2,1.6554]
[1751989710749,3.50013861,2567.3,2567.2,2.43437]
[1751989710947,3.50013861,2567.3,2567.2,1.6554]
[1751989712544,0.779,2567.1,2567.0,4.26923655]
[1751989712946,0.779,2567.1,2567.0,4.96923655]
[1751989713343,3.50019861,2567.1,2567.0,3.49022655]
[1751989713553,0.77903,2567.0,2566.9,3.49022655]
[1751989713846,0.77909,2566.8,2566.7,4.15072655]
[1751989714047,3.50028861,2566.8,2566.7,1.3605]
[1751989714443,0.77912,2566.7,2566.6,3.49022655]
[1751989714748,0.77918,2566.5,2566.4,4.15072655]
[1751989714949,0.77918,2566.5,2566.4,5.80612655]
[1751989715451,0.77918,2566.5,2566.4,3.09511]
[1751989715846,0.77918,2566.5,2566.4,1.43971]
[1751989716047,0.77915,2566.7,2566.6,0.77914]
[1751989716246,0.77915,2566.7,2566.6,1.47914]
[1751989716447,0.77915,2566.7,2566.6,1.6554]
[1751989716649,0.77915,2566.7,2566.6,0.7]
[1751989717448,3.2078,2566.9,2566.6,1.6554]
[1751989717654,0.77898,2567.2,2567.1,0.779]
[1751989717851,1.4413015,2567.4,2567.1,1.6554]
[1751989718152,2.2202515,2567.3,2567.2,0.77897]
[1751989718354,0.77895,2567.3,2567.2,2.78197]
[1751989718547,0.77895,2567.3,2567.2,3.73737]
[1751989719349,0.77891,2567.5,2567.4,0.77891]
[1751989719550,0.77891,2567.5,2567.4,1.47891]
[1751989719750,0.77891,2567.5,2567.4,2.43431]
[1751989720256,2.72119861,2567.8,2567.4,1.6554]
[1751989720557,2.72119861,2568.0,2567.7,0.77879]
[1751989720855,0.77881,2567.8,2567.7,0.77879]
[1751989721055,0.77884,2567.7,2567.6,0.77883]
[1751989721356,0.77884,2567.7,2567.6,1.47883]
[1751989721556,0.77884,2567.7,2567.6,2.43423]
[1751989721950,0.77884,2567.7,2567.6,1.6554]
[1751989722155,0.77884,2567.7,2567.6,2.43425]
[1751989722457,0.77884,2567.7,2567.6,0.7]
[1751989722654,0.77884,2567.7,2567.6,1.47885]
[1751989722855,0.77884,2567.7,2567.6,2.43425]
[1751989723656,0.77884,2567.7,2567.6,1.6554]
[1751989723957,0.77884,2567.7,2567.6,2.43425]
[1751989724255,3.50000861,2567.8,2567.7,0.77882]
[1751989724451,3.50000861,2567.8,2567.7,1.47882]
[1751989725254,1.3997,2568.0,2567.8,0.77877]
[1751989725255,4.12089861,2568.0,2567.8,0.77877]
[1751989725454,2.22056119,2567.9,2567.8,0.7]
[1751989725858,0.77882,2567.7,2567.6,0.77884]
[1751989726159,0.77882,2567.7,2567.6,2.43424]
[1751989726549,0.77882,2567.7,2567.6,0.7]
[1751989726759,0.77882,2567.7,2567.3,3.49022655]
[1751989726760,0.77891,2567.4,2567.3,3.49022655]
[1751989726963,3.50010861,2567.4,2567.3,3.49022655]
[1751989727258,0.77894,2567.3,2567.2,3.49022655]
[1751989727559,0.77894,2567.3,2567.2,0.7]
[1751989727754,2.17394,2567.3,2567.2,0.7]
[1751989729260,0.77894,2567.3,2567.2,1.6554]
[1751989731358,0.77894,2567.3,2567.2,2.43437]
[1751989731951,0.77894,2567.4,2567.3,0.77892]
[1751989732151,0.77897,2567.3,2567.2,0.77896]
[1751989732356,0.77897,2567.3,2567.2,1.48206]
[1751989732753,0.77897,2567.3,2567.2,2.52016]
[1751989733162,0.77897,2567.3,2567.2,1.7412]
[1751989734254,0.77897,2567.2,2567.1,0.6607]
[1751989734562,0.77906,2566.9,2566.8,3.49022655]
[1751989734856,0.77909,2566.8,2566.7,3.49022655]
[1751989735061,2.05009,2566.8,2566.7,3.49022655]
[1751989735463,0.77912,2566.7,2566.6,3.49022655]
[1751989735661,31.86992,2566.7,2566.6,3.49022655]
[1751989735861,34.59111861,2566.7,2566.6,3.49022655]
[1751989737263,37.53182923,2566.7,2566.6,3.49022655]
[1751989737462,0.77915,2566.6,2566.5,3.49022655]
[1751989737667,2.15915,2566.6,2566.5,3.49022655]
[1751989739968,0.77918,2566.5,2566.4,3.49022655]
[1751989740274,0.77921,2566.4,2566.3,4.52832655]
[1751989740571,0.7792,2566.5,2566.4,0.77921]
[1751989740866,0.7792,2566.5,2566.4,2.52041]
[1751989741068,0.6496,2567.1,2566.5,1.94797]
[1751989741263,26.633,2567.5,2567.1,0.77898]
[1751989741466,1.44312696,2567.4,2567.1,5.02488]
[1751989741667,2.22206696,2567.3,2567.2,1.81707]
[1751989741871,2.22206696,2567.3,2567.2,2.52017]
[1751989742070,2.22206696,2567.3,2567.2,1.7412]
[1751989744175,2.22206696,2567.3,2567.2,2.52017]
[1751989744376,1.44312696,2567.3,2567.2,2.52017]
[1751989744872,2.22206696,2567.3,2567.2,1.7412]
[1751989745271,2.22206696,2567.3,2567.2,2.52017]
[1751989745772,2.22206696,2567.3,2567.2,1.7412]
[1751989745974,2.22206696,2567.3,2567.1,3.98678]
[1751989746174,0.77894,2567.3,2567.2,2.52017]
[1751989746374,0.77894,2567.3,2567.2,1.7412]
[1751989746575,2.23058773,2567.3,2567.2,1.7412]
[1751989747676,2.22891109,2567.3,2567.2,1.7412]
[1751989749080,2.22891109,2567.3,2567.2,2.52017]
[1751989749379,2.22891109,2567.3,2567.2,1.7412]
[1751989749574,1.44997109,2567.3,2567.2,1.48207]
[1751989749880,1.44997109,2567.3,2567.2,3.17867]
[1751989751082,0.77892,2567.4,2567.3,0.77894]
[1751989751276,1.4497746,2567.5,2567.3,1.7412]
[1751989751475,1.4497746,2567.4,2567.3,3.80924]
[1751989751683,0.77886,2567.6,2567.5,0.77888]
[1751989751977,0.77886,2567.6,2567.5,5.72788]
[1751989753380,0.77886,2567.6,2567.5,2.52008]
[1751989753585,2.2289279,2567.6,2567.5,2.52008]
[1751989754085,2.2289279,2567.6,2567.5,1.7412]
[1751989754377,2.2289279,2567.6,2567.5,0.7031]
[1751989755883,0.77891,2567.4,2567.3,0.77892]
[1751989756186,0.77891,2567.4,2567.3,2.52012]
[1751989756376,0.77891,2567.4,2567.3,1.7412]
[1751989756579,0.77891,2567.4,2567.3,0.7031]
[1751989758884,3.4990045,2567.4,2567.3,0.7031]
[1751989759680,3.4990045,2567.4,2567.3,1.7412]
[1751989760582,0.77891,2567.4,2567.3,1.7412]
[1751989760789,0.77891,2567.4,2567.3,3.1456]
[1751989761286,0.77891,2567.4,2567.3,3.92454]
[1751989761482,0.77891,2567.4,2567.3,3.1456]
[1751989762186,0.77891,2567.4,2567.3,1.7412]
[1751989763485,0.77891,2567.4,2567.3,2.52014]
[1751989764092,0.77889,2567.6,2567.5,0.77888]
[1751989764284,0.77889,2567.6,2567.5,4.66538]
[1751989764484,2.22895931,2567.6,2567.5,5.63748]
[1751989765081,2.22895931,2567.6,2567.5,2.42968]
[1751989765583,2.22895931,2567.6,2567.5,5.63748]
[1751989765989,0.77889,2567.6,2567.5,5.63748]
[1751989766294,0.77884,2567.7,2567.6,0.7788]
[1751989766487,0.77882,2567.8,2567.7,0.77878]
[1751989766687,0.77882,2567.8,2567.7,4.1775745]
[1751989766892,0.77882,2567.8,2567.7,5.1496745]
[1751989767786,0.77882,2567.8,2567.7,1.6508]
[1751989768392,0.77882,2567.8,2567.7,2.42962]
[1751989768793,0.77882,2567.8,2567.7,1.6508]
[1751989771499,0.77882,2567.8,2567.7,2.42962]
[1751989771700,0.77882,2567.8,2567.7,1.6508]
[1751989772799,4.6671145,2567.8,2567.4,0.9721]
[1751989773096,4.6671145,2567.8,2567.3,0.6645]
[1751989773097,0.77891,2567.4,2567.3,0.6645]
[1751989773402,0.77891,2567.4,2567.3,2.3153]
[1751989773901,0.77891,2567.4,2567.3,1.3432]
[1751989774394,0.77891,2567.4,2567.3,2.3153]
[1751989775501,0.77891,2567.4,2567.3,5.80687554]
[1751989776002,0.77891,2567.4,2567.3,4.15607554]
[1751989776192,0.77891,2567.4,2567.3,5.80687554]
[1751989777702,0.77891,2567.4,2567.3,6.58579554]
[1751989778198,0.77891,2567.4,2567.3,3.09422]
[1751989778399,0.77891,2567.4,2567.3,2.3153]
[1751989780197,0.77891,2567.4,2567.3,3.09422]
[1751989780400,0.77891,2567.4,2567.3,2.3153]
[1751989781093,0.77891,2567.4,2567.3,4.83668351]
[1751989781298,0.77891,2567.4,2567.3,0.6787]
[1751989781501,2.16181,2567.4,2567.3,0.6787]
[1751989782002,4.8819045,2567.4,2567.3,0.6787]
[1751989782202,4.8819045,2567.4,2567.3,1.6508]
[1751989782894,3.4990045,2567.4,2567.3,1.6508]
[1751989784603,3.4990045,2567.4,2567.3,0.6787]
[1751989786104,3.4990045,2567.4,2567.1,4.46558351]
[1751989786105,0.77895,2567.2,2567.1,4.46558351]
[1751989786299,0.77895,2567.2,2567.1,5.14428351]
[1751989787705,3.4990445,2567.2,2567.1,5.14428351]
[1751989788107,3.4990445,2567.2,2567.1,5.92326351]
[1751989788798,0.77895,2567.2,2567.1,5.92326351]
[1751989789002,0.77894,2567.3,2567.2,0.77891]
[1751989789208,0.77895,2567.2,2567.1,4.27595671]
[1751989789406,0.77895,2567.2,2567.1,4.95465671]
[1751989789906,0.77895,2567.2,2567.1,5.92675671]
[1751989790103,0.77895,2567.2,2567.1,2.42974]
[1751989790306,0.77895,2567.2,2567.1,5.92687549]
[1751989793108,0.77895,2567.2,2567.1,9.13467549]
[1751989794210,0.77895,2567.2,2567.1,9.13473549]
[1751989794608,0.77895,2567.2,2567.1,8.35573549]
[1751989794805,3.4990445,2567.2,2567.1,8.35573549]
[1751989795908,3.4990445,2567.2,2567.1,6.70493549]
[1751989796110,3.4990445,2567.2,2567.1,8.33783549]
[1751989797605,3.4990445,2567.2,2567.1,5.13003549]
[1751989799509,3.4990445,2567.2,2567.1,4.14433549]
[1751989799902,4.8936445,2567.2,2567.1,4.14433549]
[1751989800107,4.8936445,2567.2,2567.1,0.6472]
[1751989800309,0.77898,2567.1,2567.0,3.49713549]
[1751989800611,0.77901,2567.0,2566.9,0.96553549]
[1751989800813,1.94779,2566.7,2566.3,4.65543405]
[1751989801006,3.4992845,2566.4,2566.3,5.30263405]
[1751989801202,3.4992845,2566.4,2566.3,6.28833405]
[1751989802207,3.4992845,2566.4,2566.3,1.6329]
[1751989802607,0.77919,2566.4,2566.3,1.6329]
[1751989802808,0.77919,2566.4,2566.3,2.2951]
[1751989803307,3.4992845,2566.4,2566.3,0.6472]
[1751989803503,4.8892845,2566.4,2566.3,0.6472]
[1751989803709,4.8892845,2566.4,2566.3,1.6329]
[1751989804612,3.2078,2566.5,2566.3,1.6329]
[1751989804807,0.77916,2566.5,2566.4,0.9857]
[1751989805010,0.77916,2566.5,2566.4,2.3177]
[1751989805916,0.77916,2566.5,2566.4,0.6848]
[1751989806119,0.77916,2566.5,2566.4,2.3177]
[1751989806611,0.77916,2566.5,2566.4,3.09689]
[1751989806816,0.77916,2566.5,2566.4,2.3177]
[1751989807614,3.4992545,2566.5,2566.4,2.3177]
[1751989808218,3.4992545,2566.5,2566.4,1.332]
[1751989808812,3.4992545,2566.5,2566.4,0.6472]
[1751989809715,3.4992545,2566.5,2566.4,1.6329]
[1751989810820,0.77916,2566.5,2566.4,1.6329]
[1751989811618,3.4992545,2566.5,2566.4,0.6472]
[1751989811917,6.7070545,2566.5,2566.4,0.6472]
[1751989813419,6.7070545,2566.5,2566.4,1.6329]
[1751989813720,33.3230545,2566.5,2566.4,1.6329]
[1751989813919,30.1152545,2566.5,2566.4,1.6329]
[1751989814219,30.1152545,2566.5,2566.4,0.6472]
[1751989814717,0.77924,2566.3,2566.2,0.9857]
[1751989814921,0.77924,2566.3,2566.2,1.6329]
[1751989815420,0.77923,2566.4,2566.3,0.77924]
[1751989815622,0.77923,2566.4,2566.3,1.42644]
[1751989815817,0.77923,2566.4,2566.0,4.6684245]
[1751989815818,1.94813,2566.3,2565.1,4.65208756]
[1751989816016,0.77976,2564.6,2564.5,5.81929256]
[1751989816318,0.77976,2564.6,2564.5,0.6472]
[1751989816319,6.7076545,2564.6,2564.5,0.6472]
[1751989816716,3.98756,2564.6,2564.5,0.6472]
[1751989817821,6.7076545,2564.6,2564.5,0.6472]
[1751989819522,0.77981,2564.5,2564.3,0.9857]
[1751989819723,2.7200945,2564.4,2564.3,0.9857]
[1751989819918,2.7200945,2564.4,2564.3,1.6329]
[1751989820125,0.7799,2564.2,2564.0,0.9857]
[1751989820320,3.2078,2564.2,2564.0,1.76564]
[1751989820525,3.2078,2564.5,2564.1,3.4058945]
[1751989820725,2.5046,2564.5,2564.4,3.4999145]
[1751989820926,3.2078,2564.8,2564.6,0.77974]
[1751989821227,3.9875,2564.8,2564.7,1.6715]
[1751989822326,3.2078,2564.8,2564.7,2.45123]
[1751989822525,2.7200945,2565.1,2564.8,0.77968]
[1751989822826,3.9874,2565.2,2565.0,0.77964]
[1751989823027,3.2078,2565.2,2565.1,1.77131]
[1751989823227,3.2078,2565.2,2565.1,2.45711]
[1751989823924,0.77955,2565.3,2565.2,0.77958]
[1751989824231,0.77955,2565.3,2565.2,2.45708]
[1751989824420,0.77955,2565.3,2565.2,1.6775]
[1751989825325,0.77955,2565.3,2565.2,2.45708]
[1751989825527,3.2078,2565.5,2565.4,0.77952]
[1751989825724,5.66682701,2566.1,2565.4,4.8853]
[1751989825925,0.77934,2566.0,2565.9,0.77934]
[1751989826125,0.77934,2566.0,2565.9,2.45684]
[1751989826325,0.77934,2566.0,2565.9,3.81734]
[1751989827229,0.77929,2566.2,2566.1,0.7793]
[1751989827526,0.77932,2566.1,2566.0,0.77933]
[1751989827738,0.77932,2566.1,2566.0,1.46513]
[1751989827928,8.87462701,2566.7,2566.0,1.6775]
[1751989828128,0.77926,2566.3,2566.1,4.1995]
[1751989828433,0.77924,2566.4,2566.2,2.45675]
[1751989828625,0.77924,2566.3,2566.2,1.6775]
[1751989828831,0.77924,2566.3,2566.2,0.6858]
[1751989829331,1.41964,2566.3,2566.2,0.6858]
[1751989829523,0.77924,2566.3,2566.2,0.6858]
[1751989829933,1.41964,2566.3,2566.2,0.6858]
[1751989830124,1.41964,2566.3,2566.2,1.46507]
[1751989830335,1.41964,2566.3,2566.2,0.6858]
[1751989830632,0.6404,2566.3,2566.2,0.6858]
[1751989830837,0.77931,2566.1,2565.9,0.6408]
[1751989831039,1.41971,2566.1,2566.0,1.46513]
[1751989831336,1.41971,2566.1,2566.0,0.6858]
[1751989831740,1.41971,2566.1,2566.0,1.46514]
[1751989832039,1.41971,2566.1,2566.0,0.6858]
[1751989832234,0.7793,2566.2,2566.0,1.46514]
[1751989832447,0.7793,2566.2,2566.1,0.9917]
[1751989832638,1.4197,2566.2,2566.1,2.4568]
[1751989832837,0.7793,2566.2,2566.1,1.6775]
[1751989833236,1.4197,2566.2,2566.1,2.4568]
[1751989833540,0.6404,2566.2,2566.1,2.4568]
[1751989833743,1.41967,2566.2,2566.1,2.4568]
[1751989834039,0.6404,2566.2,2566.1,2.4568]
[1751989834239,0.77926,2566.3,2566.2,0.77927]
[1751989834435,0.77927,2566.2,2566.1,1.77099]
[1751989834840,0.77927,2566.2,2566.1,2.45679]
[1751989835741,0.77927,2566.3,2566.2,0.77925]
[1751989836043,0.77927,2566.2,2566.1,0.77928]
[1751989836243,0.77927,2566.2,2566.1,1.46508]
[1751989836636,0.77927,2566.2,2566.1,2.45678]
[1751989838844,0.77927,2566.3,2566.2,0.77923]
[1751989839038,0.77927,2566.3,2566.2,1.46503]
[1751989839238,0.77927,2566.3,2566.2,2.45673]
[1751989839439,0.77923,2566.4,2566.3,0.77919]
[1751989839643,0.77923,2566.4,2566.3,2.45669]
[1751989839644,1.41963,2566.4,2566.3,2.45669]
[1751989839844,0.77923,2566.4,2566.3,2.45669]
[1751989840343,1.41963,2566.4,2566.3,1.46499]
[1751989840841,0.6404,2566.4,2566.3,1.46499]
[1751989841036,3.2078,2566.7,2566.6,0.77915]
[1751989841243,0.77915,2566.7,2566.6,1.46491]
[1751989841542,1.41955,2566.7,2566.6,1.46491]
[1751989842244,1.41955,2566.7,2566.5,3.2078]
[1751989842245,0.77915,2566.6,2566.5,3.98696]
[1751989842438,1.41955,2566.6,2566.5,3.98696]
[1751989842639,0.77915,2566.6,2566.5,4.67276]
[1751989842943,1.41955,2566.6,2566.5,4.67278]
[1751989843344,0.77915,2566.6,2566.5,4.67278]
[1751989843539,0.77924,2566.3,2566.2,3.2078]
[1751989843745,1.41964,2566.3,2566.2,4.67287]
[1751989844138,1.41964,2566.3,2566.2,3.98707]
[1751989844341,1.41964,2566.3,2566.2,3.8936]
[1751989845043,1.41964,2566.3,2566.2,4.67287]
[1751989845445,1.41964,2566.3,2566.2,3.8936]
[1751989845636,7.08646701,2566.3,2566.2,3.2078]
[1751989845841,1.94822,2566.2,2565.7,3.8664]
[1751989846042,0.6404,2565.8,2565.7,5.33163]
[1751989846339,0.6404,2565.8,2565.7,3.98723]
[1751989846541,0.6404,2565.8,2565.7,4.67303]
[1751989847141,1.0249,2566.2,2565.7,3.8936]
[1751989847541,0.77936,2566.0,2565.9,0.77936]
[1751989847744,0.77938,2565.9,2565.8,0.77938]
[1751989847945,1.41976,2566.0,2565.9,0.77937]
[1751989848145,0.77937,2565.9,2565.8,0.77937]
[1751989848748,1.41975,2566.0,2565.9,0.77937]
[1751989849043,0.77939,2565.9,2565.8,0.77937]
[1751989849444,0.77935,2566.0,2565.9,0.77934]
[1751989849643,0.77933,2566.1,2566.0,0.77932]
[1751989849944,5.01197,2566.3,2566.2,0.77927]
[1751989850136,2.44457,2566.3,2566.2,0.77927]
[1751989850648,0.7793,2566.2,2566.1,0.77929]
[1751989851147,1.4135,2566.2,2566.1,0.77929]
[1751989851848,0.7793,2566.2,2566.1,0.77929]
[1751989852148,1.4135,2566.2,2566.1,0.77929]
[1751989852348,0.7794,2565.8,2565.7,3.2078]
[1751989852551,0.7794,2565.8,2565.7,3.8777]
[1751989853542,0.7794,2565.8,2565.7,0.6699]
[1751989854447,0.7794,2565.8,2565.7,1.44933]
[1751989854651,0.77939,2565.9,2565.8,0.77937]
[1751989854852,0.77939,2565.9,2565.8,1.42827]
[1751989856052,0.77939,2565.9,2565.8,3.10047]
[1751989857343,0.77939,2565.9,2565.8,1.42827]
[1751989857647,0.77939,2565.9,2565.8,3.10047]
[1751989860350,0.77939,2565.9,2565.8,2.3211]
[1751989860549,1.41359,2565.9,2565.8,1.3188]
[1751989861644,1.41359,2565.9,2565.8,3.10049]
[1751989861849,0.77939,2565.9,2565.8,3.10049]
[1751989862251,0.77939,2565.9,2565.8,2.09819]
[1751989862555,1.41359,2565.9,2565.8,2.09819]
[1751989862756,0.77939,2565.9,2565.8,2.09819]
[1751989863050,1.41359,2565.9,2565.8,2.09819]
[1751989863257,1.41359,2565.9,2565.8,1.3188]
[1751989863446,1.41359,2565.9,2565.8,3.10049]
[1751989864752,0.77935,2566.1,2566.0,0.7793]
[1751989865047,1.41355,2566.1,2566.0,2.4515]
[1751989865253,0.77935,2566.1,2566.0,1.6722]
[1751989865455,1.41355,2566.1,2566.0,2.45152]
[1751989865658,0.77935,2566.1,2566.0,2.45152]
[1751989865954,0.77935,2566.1,2566.0,0.77932]
[1751989866152,1.41355,2566.1,2566.0,1.44922]
[1751989866948,1.41355,2566.1,2566.0,2.45152]
[1751989867456,3.9088,2566.5,2566.0,1.6722]
[1751989867663,0.77922,2566.4,2566.3,0.7792]
[1751989868058,0.77922,2566.4,2566.3,1.4491]
[1751989869062,1.41342,2566.4,2566.3,1.4491]
[1751989869361,0.77922,2566.4,2566.3,1.4491]
[1751989869860,0.77922,2566.4,2566.3,0.6699]
[1751989870059,1.41342,2566.4,2566.3,0.6699]
[1751989870261,0.77922,2566.4,2566.3,0.6699]
[1751989870966,1.41342,2566.4,2566.3,0.6699]
[1751989871160,0.77926,2566.2,2566.1,0.77927]
[1751989871357,0.77926,2566.2,2566.1,1.44917]
[1751989871758,1.41346,2566.2,2566.1,0.6699]